{"text_format":"1","workbook":"xlsx","n_sheets":5,"sheets":["請求方法","A.概要入力","B.日別報告様式","C.共済契約者別一覧","D.証紙交付依頼書"],"not_rendered":{"charts":0,"images":0,"macros":1,"external_links":0,"defined_names":2,"comments":4,"pivot_tables":0},"unopened":[],"bounds":{"document_bytes":16777216,"sheet_cells":100000,"rows_first":2000,"rows_last":500,"rows_between":2000,"halvings":0,"cell_chars":16384,"cell_head_chars":4096},"cells_cut":0,"cells_raw":0,"read":"whole","date_system":"1900"}

{"sheet":"請求方法","index":0,"n_rows":11,"n_cols":3,"rows_kept":11,"cut":false,"hidden":false,"merged":[[0,0,0,7]]}
["請求方法"]
[]
["STEP1","A.概要入力　及び　B.日別報告様式に必要事項をご入力ください。"]
[null,null,"←入力項目"]
[]
["STEP2","B.日別報告様式、C.共済契約者別一覧、D.証紙交付依頼書　を印刷して下さい。"]
[null,"※直近の下請請求分がある場合は直近下請の報告書を添付して下さい。"]
[]
["STEP3","各書類、現場責任確認欄に押印及びサイン（D.証紙交付依頼書は受領者確認欄含む）"]
[]
["STEP4","各現場事務所へご郵送お願いいたします。"]

{"sheet":"A.概要入力","index":1,"n_rows":17,"n_cols":5,"rows_kept":17,"cut":false,"hidden":false,"merged":[[31,1,31,2],[26,1,26,2],[27,1,27,2],[28,1,28,2],[29,1,29,2],[30,1,30,2],[21,1,21,2],[22,1,22,2],[23,1,23,2],[24,1,24,2],[25,1,25,2],[16,1,16,2],[17,1,17,2],[18,1,18,2],[19,1,19,2],[20,1,20,2],[14,3,14,4],[13,1,13,4],[10,1,10,4],[11,1,11,4],[12,1,12,4],[7,1,7,4],[8,1,8,4],[1,1,1,4],[3,1,3,4],[4,1,4,4],[5,1,5,4],[6,1,6,4]]}
[]
["項目名","入力欄"]
["貴社会社概要"]
["取引先コード（8桁）"]
["会社名"]
["住所"]
["電話番号"]
["共済契約者番号"]
["建設キャリアアップシステム\n事業者ID"]
["工事概要"]
["工事名"]
["工事コード"]
["建設キャリアアップシステム\n現場ID"]
["報告日"]
["報告期間",null,"～"]
["直近下請より請求分"]
["共済契約者番号(下請)","下請名",null,"被共済者数","延べ就労日数"]

{"sheet":"B.日別報告様式","index":2,"n_rows":69,"n_cols":39,"rows_kept":69,"cut":false,"hidden":false,"merged":[[11,3,12,30],[22,36,23,36],[9,3,10,30],[14,3,15,30],[12,32,12,35],[8,32,10,32],[8,33,10,35],[16,3,16,30],[18,17,18,19],[18,21,18,26],[19,3,19,16],[19,17,19,19],[19,21,19,35],[13,3,13,30],[13,32,13,35],[5,3,5,30],[6,3,6,30],[8,3,8,30],[1,0,1,35],[2,29,2,35],[3,1,3,3],[3,29,3,35],[7,3,7,30],[6,32,7,32],[6,33,7,35],[2,26,2,28],[3,26,3,28],[35,0,35,34],[22,0,23,0],[22,1,23,1],[22,2,23,2],[22,3,23,3],[22,16,22,21],[22,23,22,27],[42,3,43,30],[43,32,43,35],[41,3,41,30],[37,0,37,35],[38,27,38,28],[38,29,38,35],[39,1,39,3],[39,27,39,28],[39,29,39,35],[50,36,51,36],[34,0,34,34],[68,0,68,34],[47,3,47,16],[47,17,47,19],[47,21,47,35],[50,0,51,0],[50,1,51,1],[50,2,51,2],[50,3,51,3],[50,16,50,21],[50,23,50,27],[44,3,44,30],[44,32,44,35],[46,17,46,19],[46,21,46,26]]}
[null,"　　建退共事務受託様式５号"]
["被共済者就労状況報告書（日別報告様式）"]
[null,null,null,null,null,null,null,null,null,null,null,null,null,null,null,null,null,null,null,null,null,null,null,null,null,null,"整理番号",null,null,{"$f":"A.概要入力!B4","v":0}]
[null,"萩原建設工業株式会社",null,null,"殿",null,null,null,null,null,null,null,null,null,null,null,null,null,null,null,null,null,null,null,null,null,"報告日",null,null,{"$f":"A.概要入力!B14","v":"00:00:00"}]
[]
[null,"報告事業所名",null,{"$f":"A.概要入力!B5","v":0}]
[null,"住所",null,{"$f":"A.概要入力!B6","v":0},null,null,null,null,null,null,null,null,null,null,null,null,null,null,null,null,null,null,null,null,null,null,null,null,null,null,null,null,null,"掛金納付についての\n事務を委託します。"]
[null,"電話番号",null,{"$f":"A.概要入力!B7","v":0}]
[null,"共済契約者\n番号",null,{"$f":"A.概要入力!B8","v":0},null,null,null,null,null,null,null,null,null,null,null,null,null,null,null,null,null,null,null,null,null,null,null,null,null,null,null,null,null,"就労実績の集計に建設\nキャリアアップシステムを\n活用しています。"]
[null,"建設キャリアアップシステム",null,{"$f":"A.概要入力!B9","v":0}]
[null,"事業者ⅠD"]
[null,"工事番号および",null,{"$f":"A.概要入力!B11","v":0}]
[null,"工事名"]
[null,"工事コード",null,{"$f":"A.概要入力!B12","v":0},null,null,null,null,null,null,null,null,null,null,null,null,null,null,null,null,null,null,null,null,null,null,null,null,null,null,null,null,"現場責任者確認"]
[null,"建設キャリアアップシステム",null,{"$f":"A.概要入力!B13","v":0}]
[null,"現場ⅠD"]
[null,"備考"]
[]
[null,"（契約者番号）",null,"51-00295",null,null,null,null,null,null,null,null,null,null,null,null,null,"（契約者番号）",null,null,null,{"$f":"A.概要入力!B8","v":0}]
[null,"元請事業所名",null,"萩原建設工業株式会社",null,null,null,null,null,null,null,null,null,null,null,null,null,"一次事業所名",null,null,null,{"$f":"A.概要入力!B5","v":0}]
[]
["次の表のとおり、就労実績を報告します。"]
["No.","被共済者番号","項番","氏名",null,null,null,null,null,null,null,null,null,null,"就労状況",null,{"$f":"A.概要入力!B15","v":"00:00:00"},null,null,null,null,null,"～",{"$f":"A.概要入力!D15","v":"00:00:00"},null,null,null,null,null,null,null,null,null,null,null,null,"CCUS"]
[null,null,null,null,{"$f":"DAY($Q$23)","v":0},{"$f":"DAY($Q$23+1)","v":1},{"$f":"DAY($Q$23+2)","v":2},{"$f":"DAY($Q$23+3)","v":3},{"$f":"DAY($Q$23+4)","v":4},{"$f":"DAY($Q$23+5)","v":5},{"$f":"DAY($Q$23+6)","v":6},{"$f":"DAY($Q$23+7)","v":7},{"$f":"DAY($Q$23+8)","v":8},{"$f":"DAY($Q$23+9)","v":9},{"$f":"DAY($Q$23+10)","v":10},{"$f":"DAY($Q$23+11)","v":11},{"$f":"DAY($Q$23+12)","v":12},{"$f":"DAY($Q$23+13)","v":13},{"$f":"DAY($Q$23+14)","v":14},{"$f":"DAY($Q$23+15)","v":15},{"$f":"DAY($Q$23+16)","v":16},{"$f":"DAY($Q$23+17)","v":17},{"$f":"DAY($Q$23+18)","v":18},{"$f":"DAY($Q$23+19)","v":19},{"$f":"DAY($Q$23+20)","v":20},{"$f":"DAY($Q$23+21)","v":21},{"$f":"DAY($Q$23+22)","v":22},{"$f":"DAY($Q$23+23)","v":23},{"$f":"DAY($Q$23+24)","v":24},{"$f":"DAY($Q$23+25)","v":25},{"$f":"DAY($Q$23+26)","v":26},{"$f":"DAY($Q$23+27)","v":27},{"$f":"DAY($Q$23+28)","v":28},{"$f":"DAY($Q$23+29)","v":29},{"$f":"IF(DAY($Q$23+30)=E24,\"\",DAY($Q$23+30))","v":30},"合計日数"]
[1,null,null,null,null,null,null,null,null,null,null,null,null,null,null,null,null,null,null,null,null,null,null,null,null,null,null,null,null,null,null,null,null,null,null,{"$f":"SUM(E25:AI25)","v":0},"　",null,{"$f":"IF(D25=\"\",0,1)","v":0}]
[2,null,null,null,null,null,null,null,null,null,null,null,null,null,null,null,null,null,null,null,null,null,null,null,null,null,null,null,null,null,null,null,null,null,null,{"$f":"SUM(E26:AI26)","v":0},null,null,{"$f":"IF(D26=\"\",0,1)","v":0}]
[3,null,null,null,null,null,null,null,null,null,null,null,null,null,null,null,null,null,null,null,null,null,null,null,null,null,null,null,null,null,null,null,null,null,null,0,null,null,0]
[4,null,null,null,null,null,null,null,null,null,null,null,null,null,null,null,null,null,null,null,null,null,null,null,null,null,null,null,null,null,null,null,null,null,null,0,null,null,0]
[5,null,null,null,null,null,null,null,null,null,null,null,null,null,null,null,null,null,null,null,null,null,null,null,null,null,null,null,null,null,null,null,null,null,null,0,null,null,0]
[6,null,null,null,null,null,null,null,null,null,null,null,null,null,null,null,null,null,null,null,null,null,null,null,null,null,null,null,null,null,null,null,null,null,null,0,null,null,0]
[7,null,null,null,null,null,null,null,null,null,null,null,null,null,null,null,null,null,null,null,null,null,null,null,null,null,null,null,null,null,null,null,null,null,null,0,null,null,0]
[8,null,null,null,null,null,null,null,null,null,null,null,null,null,null,null,null,null,null,null,null,null,null,null,null,null,null,null,null,null,null,null,null,null,null,0,null,null,0]
[9,null,null,null,null,null,null,null,null,null,null,null,null,null,null,null,null,null,null,null,null,null,null,null,null,null,null,null,null,null,null,null,null,null,null,0,null,null,0]
[10,null,null,null,null,null,null,null,null,null,null,null,null,null,null,null,null,null,null,null,null,null,null,null,null,null,null,null,null,null,null,null,null,null,null,{"$f":"SUM(E34:AI34)","v":0},null,null,0]
["小計",null,null,null,null,null,null,null,null,null,null,null,null,null,null,null,null,null,null,null,null,null,null,null,null,null,null,null,null,null,null,null,null,null,null,{"$f":"SUM(AJ25:AJ34)","v":0}]
["総合計",null,null,null,null,null,null,null,null,null,null,null,null,null,null,null,null,null,null,null,null,null,null,null,null,null,null,null,null,null,null,null,null,null,null,{"$f":"AJ35+AJ69","v":0},{"$f":"COUNTA(AK25:AK34)","v":1}]
[null,"　　建退共事務受託様式５号"]
["被共済者就労状況報告書（日別報告様式）No.2"]
[null,null,null,null,null,null,null,null,null,null,null,null,null,null,null,null,null,null,null,null,null,null,null,null,null,null,null,"整理番号",null,{"$f":"AD3","v":0}]
[null,"萩原建設工業株式会社",null,null,"殿",null,null,null,null,null,null,null,null,null,null,null,null,null,null,null,null,null,null,null,null,null,null,"報告日",null,{"$f":"AD4","v":"00:00:00"}]
[]
[null,"報告事業所名",null,{"$f":"D6","v":0}]
[null,"工事番号および",null,{"$f":"D12","v":0}]
[null,"工事名"]
[null,"工事コード",null,{"$f":"D14","v":0}]
[]
[null,"（契約者番号）",null,"51-00295",null,null,null,null,null,null,null,null,null,null,null,null,null,"（契約者番号）",null,null,null,{"$f":"V19","v":0}]
[null,"元請事業所名",null,"萩原建設工業株式会社",null,null,null,null,null,null,null,null,null,null,null,null,null,"一次事業所名",null,null,null,{"$f":"V20","v":0}]
[]
["次の表のとおり、就労実績を報告します。"]
["No.","被共済者番号","項番","氏名",null,null,null,null,null,null,null,null,null,null,"就労状況",null,{"$f":"Q23","v":"00:00:00"},null,null,null,null,null,"～",{"$f":"X23","v":"00:00:00"},null,null,null,null,null,null,null,null,null,null,null,null,"CCUS"]
[null,null,null,null,{"$f":"DAY($Q$23)","v":0},{"$f":"DAY($Q$23+1)","v":1},{"$f":"DAY($Q$23+2)","v":2},{"$f":"DAY($Q$23+3)","v":3},{"$f":"DAY($Q$23+4)","v":4},{"$f":"DAY($Q$23+5)","v":5},{"$f":"DAY($Q$23+6)","v":6},{"$f":"DAY($Q$23+7)","v":7},{"$f":"DAY($Q$23+8)","v":8},{"$f":"DAY($Q$23+9)","v":9},{"$f":"DAY($Q$23+10)","v":10},{"$f":"DAY($Q$23+11)","v":11},{"$f":"DAY($Q$23+12)","v":12},{"$f":"DAY($Q$23+13)","v":13},{"$f":"DAY($Q$23+14)","v":14},{"$f":"DAY($Q$23+15)","v":15},{"$f":"DAY($Q$23+16)","v":16},{"$f":"DAY($Q$23+17)","v":17},{"$f":"DAY($Q$23+18)","v":18},{"$f":"DAY($Q$23+19)","v":19},{"$f":"DAY($Q$23+20)","v":20},{"$f":"DAY($Q$23+21)","v":21},{"$f":"DAY($Q$23+22)","v":22},{"$f":"DAY($Q$23+23)","v":23},{"$f":"DAY($Q$23+24)","v":24},{"$f":"DAY($Q$23+25)","v":25},{"$f":"DAY($Q$23+26)","v":26},{"$f":"DAY($Q$23+27)","v":27},{"$f":"DAY($Q$23+28)","v":28},{"$f":"DAY($Q$23+29)","v":29},{"$f":"IF(DAY($Q$23+30)=E52,\"\",DAY($Q$23+30))","v":30},"合計日数"]
[11,null,null,null,null,null,null,null,null,null,null,null,null,null,null,null,null,null,null,null,null,null,null,null,null,null,null,null,null,null,null,null,null,null,null,{"$f":"SUM(E53:AI53)","v":0},"　",null,{"$f":"IF(D53=\"\",0,1)","v":0}]
[12,null,null,null,null,null,null,null,null,null,null,null,null,null,null,null,null,null,null,null,null,null,null,null,null,null,null,null,null,null,null,null,null,null,null,{"$f":"SUM(E54:AI54)","v":0},null,null,{"$f":"IF(D54=\"\",0,1)","v":0}]
[13,null,null,null,null,null,null,null,null,null,null,null,null,null,null,null,null,null,null,null,null,null,null,null,null,null,null,null,null,null,null,null,null,null,null,0,null,null,0]
[14,null,null,null,null,null,null,null,null,null,null,null,null,null,null,null,null,null,null,null,null,null,null,null,null,null,null,null,null,null,null,null,null,null,null,0,null,null,0]
[15,null,null,null,null,null,null,null,null,null,null,null,null,null,null,null,null,null,null,null,null,null,null,null,null,null,null,null,null,null,null,null,null,null,null,0,null,null,0]
[16,null,null,null,null,null,null,null,null,null,null,null,null,null,null,null,null,null,null,null,null,null,null,null,null,null,null,null,null,null,null,null,null,null,null,0,null,null,0]
[17,null,null,null,null,null,null,null,null,null,null,null,null,null,null,null,null,null,null,null,null,null,null,null,null,null,null,null,null,null,null,null,null,null,null,0,null,null,0]
[18,null,null,null,null,null,null,null,null,null,null,null,null,null,null,null,null,null,null,null,null,null,null,null,null,null,null,null,null,null,null,null,null,null,null,0,null,null,0]
[19,null,null,null,null,null,null,null,null,null,null,null,null,null,null,null,null,null,null,null,null,null,null,null,null,null,null,null,null,null,null,null,null,null,null,0,null,null,0]
[20,null,null,null,null,null,null,null,null,null,null,null,null,null,null,null,null,null,null,null,null,null,null,null,null,null,null,null,null,null,null,null,null,null,null,0,null,null,0]
[21,null,null,null,null,null,null,null,null,null,null,null,null,null,null,null,null,null,null,null,null,null,null,null,null,null,null,null,null,null,null,null,null,null,null,0,null,null,0]
[22,null,null,null,null,null,null,null,null,null,null,null,null,null,null,null,null,null,null,null,null,null,null,null,null,null,null,null,null,null,null,null,null,null,null,0,null,null,0]
[23,null,null,null,null,null,null,null,null,null,null,null,null,null,null,null,null,null,null,null,null,null,null,null,null,null,null,null,null,null,null,null,null,null,null,0,null,null,0]
[24,null,null,null,null,null,null,null,null,null,null,null,null,null,null,null,null,null,null,null,null,null,null,null,null,null,null,null,null,null,null,null,null,null,null,0,null,null,0]
[25,null,null,null,null,null,null,null,null,null,null,null,null,null,null,null,null,null,null,null,null,null,null,null,null,null,null,null,null,null,null,null,null,null,null,0,null,null,0]
[26,null,null,null,null,null,null,null,null,null,null,null,null,null,null,null,null,null,null,null,null,null,null,null,null,null,null,null,null,null,null,null,null,null,null,0,null,null,0]
["小計",null,null,null,null,null,null,null,null,null,null,null,null,null,null,null,null,null,null,null,null,null,null,null,null,null,null,null,null,null,null,null,null,null,null,{"$f":"SUM(AJ53:AJ68)","v":0},null,null,{"$f":"SUM(AM53:AM68,AM25:AM34)","v":0}]

{"sheet":"C.共済契約者別一覧","index":3,"n_rows":37,"n_cols":32,"rows_kept":37,"cut":false,"hidden":false,"merged":[[1,0,1,36],[2,23,2,26],[2,27,2,36],[3,1,3,20],[3,23,3,26],[3,27,3,36],[5,28,7,29],[5,30,7,35],[10,1,10,2],[8,4,8,23],[7,4,7,23],[6,4,6,23],[5,4,5,23],[11,1,11,2],[12,1,12,2],[10,28,10,36],[12,35,12,36],[5,1,5,2],[6,1,6,2],[7,1,7,2],[8,1,8,2],[17,38,17,40],[12,4,12,23],[11,4,11,23],[9,1,9,2],[9,4,10,25],[18,0,19,0],[18,1,19,2],[18,3,19,3],[18,4,19,24],[18,25,19,30],[18,31,19,36],[14,1,14,2],[14,4,14,14],[14,15,14,21],[14,23,14,36],[15,1,15,2],[15,4,15,14],[15,15,15,21],[15,23,15,36],[20,1,20,2],[20,4,20,24],[20,25,20,30],[20,31,20,36],[21,1,21,2],[21,4,21,24],[21,25,21,30],[21,31,21,36],[17,8,17,11],[17,12,17,21],[17,24,17,33],[24,1,24,2],[24,4,24,24],[24,25,24,30],[24,31,24,36],[25,1,25,2],[25,4,25,24],[25,25,25,30],[25,31,25,36],[22,1,22,2],[22,4,22,24],[22,25,22,30],[22,31,22,36],[23,1,23,2],[23,4,23,24],[23,25,23,30],[23,31,23,36],[28,1,28,2],[28,4,28,24],[28,25,28,30],[28,31,28,36],[29,1,29,2],[29,4,29,24],[29,25,29,30],[29,31,29,36],[26,1,26,2],[26,4,26,24],[26,25,26,30],[26,31,26,36],[27,1,27,2],[27,4,27,24],[27,25,27,30],[27,31,27,36],[36,0,36,24],[36,25,36,30],[36,31,36,36],[34,1,34,2],[34,4,34,24],[34,25,34,30],[34,31,34,36],[35,1,35,2],[35,4,35,24],[35,25,35,30],[35,31,35,36],[32,1,32,2],[32,4,32,24],[32,25,32,30],[32,31,32,36],[33,1,33,2],[33,4,33,24],[33,25,33,30],[33,31,33,36],[30,1,30,2],[30,4,30,24],[30,25,30,30],[30,31,30,36],[31,1,31,2],[31,4,31,24],[31,25,31,30],[31,31,31,36]]}
[]
["建退共制度に係る被共済者就労状況報告書（共済契約者別一覧）"]
[null,null,null,null,null,null,null,null,null,null,null,null,null,null,null,null,null,null,null,null,null,null,null,"整理番号",null,null,null,{"$f":"A.概要入力!B4","v":0}]
[null,"",null,null,null,null,null,null,null,null,null,null,null,null,null,null,null,null,null,null,null,null,null,"報告日",null,null,null,{"$f":"B.日別報告様式!AD4","v":"00:00:00"}]
[]
[null,"報告事業所名",null,null,{"$f":"A.概要入力!B5","v":0},null,null,null,null,null,null,null,null,null,null,null,null,null,null,null,null,null,null,null,null,null,null,null,{"$f":"IF(A.概要入力!B18=\"\",\"\",\"〇\")","v":""},null,"下表の共済契約者\n（下請負人）から\n掛金納付についての\n事務を受託しました。"]
[null,"住所",null,null,{"$f":"A.概要入力!B6","v":0}]
[null,"電話番号",null,null,{"$f":"A.概要入力!B7","v":0}]
[null,"共済契約者\n番号",null,null,{"$f":"A.概要入力!B8","v":0}]
[null,"工事番号および",null,null,{"$f":"A.概要入力!B11","v":0}]
[null,"工事名",null,null,null,null,null,null,null,null,null,null,null,null,null,null,null,null,null,null,null,null,null,null,null,null,null,null,"現場責任者確認"]
[null,"工事コード",null,null,{"$f":"A.概要入力!B12","v":0}]
[null,"備考",null,null,{"$f":"B.日別報告様式!D17","v":0}]
[]
[null,"(共済契約者番号)",null,null,{"$f":"B.日別報告様式!D19","v":"51-00295"},null,null,null,null,null,null,null,null,null,null,"(共済契約者番号)",null,null,null,null,null,null,null,{"$f":"A.概要入力!B8","v":0}]
[null,"元請事業所名",null,null,{"$f":"B.日別報告様式!D20","v":"萩原建設工業株式会社"},null,null,null,null,null,null,null,null,null,null,"一次事業所名",null,null,null,null,null,null,null,{"$f":"A.概要入力!B5","v":0}]
[]
[null,"次の表のとおり、就労実績を報告します。",null,null,null,null,null,null,"報告期間：",null,null,null,{"$f":"B.日別報告様式!Q23","v":"00:00:00"},null,null,null,null,null,null,null,null,null,"～",null,{"$f":"B.日別報告様式!X23","v":"00:00:00"}]
["No.","共済契約者番号",null,"項番","共済契約者名",null,null,null,null,null,null,null,null,null,null,null,null,null,null,null,null,null,null,null,null,"被共済者数",null,null,null,null,null,"延べ就労日数"]
[]
["1",{"$f":"A.概要入力!B8","v":0},null,null,{"$f":"A.概要入力!B5","v":0},null,null,null,null,null,null,null,null,null,null,null,null,null,null,null,null,null,null,null,null,{"$f":"B.日別報告様式!AM69","v":0},null,null,null,null,null,{"$f":"B.日別報告様式!AJ36","v":0}]
["2",{"$f":"A.概要入力!A18","v":0},null,null,{"$f":"A.概要入力!B18","v":0},null,null,null,null,null,null,null,null,null,null,null,null,null,null,null,null,null,null,null,null,{"$f":"A.概要入力!D18","v":0},null,null,null,null,null,{"$f":"A.概要入力!E18","v":0}]
["3",{"$f":"A.概要入力!A19","v":0},null,null,{"$f":"A.概要入力!B19","v":0},null,null,null,null,null,null,null,null,null,null,null,null,null,null,null,null,null,null,null,null,{"$f":"A.概要入力!D19","v":0},null,null,null,null,null,{"$f":"A.概要入力!E19","v":0}]
["4",{"$f":"A.概要入力!A20","v":0},null,null,{"$f":"A.概要入力!B20","v":0},null,null,null,null,null,null,null,null,null,null,null,null,null,null,null,null,null,null,null,null,{"$f":"A.概要入力!D20","v":0},null,null,null,null,null,{"$f":"A.概要入力!E20","v":0}]
["5",{"$f":"A.概要入力!A21","v":0},null,null,{"$f":"A.概要入力!B21","v":0},null,null,null,null,null,null,null,null,null,null,null,null,null,null,null,null,null,null,null,null,{"$f":"A.概要入力!D21","v":0},null,null,null,null,null,{"$f":"A.概要入力!E21","v":0}]
["6",{"$f":"A.概要入力!A22","v":0},null,null,{"$f":"A.概要入力!B22","v":0},null,null,null,null,null,null,null,null,null,null,null,null,null,null,null,null,null,null,null,null,{"$f":"A.概要入力!D22","v":0},null,null,null,null,null,{"$f":"A.概要入力!E22","v":0}]
["7",{"$f":"A.概要入力!A23","v":0},null,null,{"$f":"A.概要入力!B23","v":0},null,null,null,null,null,null,null,null,null,null,null,null,null,null,null,null,null,null,null,null,{"$f":"A.概要入力!D23","v":0},null,null,null,null,null,{"$f":"A.概要入力!E23","v":0}]
["8",{"$f":"A.概要入力!A24","v":0},null,null,{"$f":"A.概要入力!B24","v":0},null,null,null,null,null,null,null,null,null,null,null,null,null,null,null,null,null,null,null,null,{"$f":"A.概要入力!D24","v":0},null,null,null,null,null,{"$f":"A.概要入力!E24","v":0}]
["9",{"$f":"A.概要入力!A25","v":0},null,null,{"$f":"A.概要入力!B25","v":0},null,null,null,null,null,null,null,null,null,null,null,null,null,null,null,null,null,null,null,null,{"$f":"A.概要入力!D25","v":0},null,null,null,null,null,{"$f":"A.概要入力!E25","v":0}]
["10",{"$f":"A.概要入力!A26","v":0},null,null,{"$f":"A.概要入力!B26","v":0},null,null,null,null,null,null,null,null,null,null,null,null,null,null,null,null,null,null,null,null,{"$f":"A.概要入力!D26","v":0},null,null,null,null,null,{"$f":"A.概要入力!E26","v":0}]
["11",{"$f":"A.概要入力!A27","v":0},null,null,{"$f":"A.概要入力!B27","v":0},null,null,null,null,null,null,null,null,null,null,null,null,null,null,null,null,null,null,null,null,{"$f":"A.概要入力!D27","v":0},null,null,null,null,null,{"$f":"A.概要入力!E27","v":0}]
["12",{"$f":"A.概要入力!A28","v":0},null,null,{"$f":"A.概要入力!B28","v":0},null,null,null,null,null,null,null,null,null,null,null,null,null,null,null,null,null,null,null,null,{"$f":"A.概要入力!D28","v":0},null,null,null,null,null,{"$f":"A.概要入力!E28","v":0}]
["13",{"$f":"A.概要入力!A29","v":0},null,null,{"$f":"A.概要入力!B29","v":0},null,null,null,null,null,null,null,null,null,null,null,null,null,null,null,null,null,null,null,null,{"$f":"A.概要入力!D29","v":0},null,null,null,null,null,{"$f":"A.概要入力!E29","v":0}]
["14",{"$f":"A.概要入力!A30","v":0},null,null,{"$f":"A.概要入力!B30","v":0},null,null,null,null,null,null,null,null,null,null,null,null,null,null,null,null,null,null,null,null,{"$f":"A.概要入力!D30","v":0},null,null,null,null,null,{"$f":"A.概要入力!E30","v":0}]
["15",{"$f":"A.概要入力!A31","v":0},null,null,{"$f":"A.概要入力!B31","v":0},null,null,null,null,null,null,null,null,null,null,null,null,null,null,null,null,null,null,null,null,{"$f":"A.概要入力!D31","v":0},null,null,null,null,null,{"$f":"A.概要入力!E31","v":0}]
["16",{"$f":"A.概要入力!A32","v":0},null,null,{"$f":"A.概要入力!B32","v":0},null,null,null,null,null,null,null,null,null,null,null,null,null,null,null,null,null,null,null,null,{"$f":"A.概要入力!D32","v":0},null,null,null,null,null,{"$f":"A.概要入力!E32","v":0}]
["総合計　",null,null,null,null,null,null,null,null,null,null,null,null,null,null,null,null,null,null,null,null,null,null,null,null,{"$f":"SUM(Z21:AE36)","v":0},null,null,null,null,null,{"$f":"SUM(AF21:AK36)","v":0}]

{"sheet":"D.証紙交付依頼書","index":4,"n_rows":61,"n_cols":28,"rows_kept":61,"cut":false,"hidden":false,"merged":[[16,7,16,10],[15,7,15,10],[16,11,16,29],[55,22,55,28],[44,1,44,5],[44,6,44,20],[48,13,49,17],[21,7,21,10],[33,6,33,8],[33,16,33,18],[41,24,41,29],[39,1,39,29],[24,11,25,29],[25,7,25,10],[23,7,23,10],[22,7,22,10],[5,1,5,29],[6,1,6,29],[8,24,8,29],[11,1,11,2],[15,11,15,29],[9,21,9,29],[12,1,12,5],[12,6,12,20],[21,11,22,29],[59,15,60,24],[57,25,57,29],[58,25,60,29],[17,11,17,29],[18,11,18,29],[31,24,31,29],[31,5,31,11],[31,14,31,20],[19,7,19,10],[19,11,20,29],[20,7,20,10],[24,7,24,10],[18,7,18,10],[17,7,17,10],[23,11,23,29],[0,21,0,26],[1,21,3,26],[0,18,0,20],[1,15,2,17],[4,18,4,29],[0,27,0,29]]}
[null,"建退共事務受託様式２号",null,null,null,null,null,null,null,null,null,null,null,null,null,null,null,null,"主務部長",null,null,"主務管理職",null,null,null,null,null,"現場代理人"]
[null,null,null,null,null,null,null,null,null,null,null,null,null,null,null,"承認後、総務部←"]
[]
[]
[null,null,null,null,null,null,null,null,null,null,null,null,null,null,null,null,null,null,"※萩原建設工業　使用欄"]
[null,"建退共制度に係る被共済者就労状況報告書"]
[null,"（兼建設業退職金共済証紙交付依頼書）"]
[]
[null,null,null,null,null,null,null,null,null,null,null,null,null,null,null,null,null,null,null,null,null,"整理番号",null,null,{"$f":"A.概要入力!B4","v":0}]
[null,null,null,null,null,null,null,null,null,null,null,null,null,null,null,null,null,null,null,null,null,{"$f":"B.日別報告様式!AD4","v":"00:00:00"}]
[]
[]
[null,"交付元事業所",null,null,null,null,{"$f":"B.日別報告様式!B4","v":"萩原建設工業株式会社"},null,null,null,null,null,null,null,null,null,null,null,null,null,null,null,"殿"]
[]
[]
[null,null,null,null,null,null,null,"報告事業所",null,null,null,{"$f":"A.概要入力!B5","v":0}]
[null,null,null,null,null,null,null,"住         所",null,null,null,{"$f":"A.概要入力!B6","v":0}]
[null,null,null,null,null,null,null,"電 話 番 号",null,null,null,{"$f":"A.概要入力!B7","v":0}]
[null,null,null,null,null,null,null,"共済契約者\n番　　　　号",null,null,null,{"$f":"A.概要入力!B8","v":0}]
[null,null,null,null,null,null,null,"建設キャリアアップシステム",null,null,null,{"$f":"A.概要入力!B9","v":0}]
[null,null,null,null,null,null,null,"事業者ⅠD"]
[null,null,null,null,null,null,null,"工事番号および",null,null,null,{"$f":"A.概要入力!B11","v":0}]
[null,null,null,null,null,null,null,"工   事   名"]
[null,null,null,null,null,null,null,"工 事 コード",null,null,null,{"$f":"A.概要入力!B12","v":0}]
[null,null,null,null,null,null,null,"建設キャリアアップシステム",null,null,null,{"$f":"A.概要入力!B13","v":0}]
[null,null,null,null,null,null,null,"現 場 Ⅰ D"]
[]
[null,null,"以下のとおり報告します。"]
[]
[null,null,null,null,null,null,null,null,null,null,null,null,"記"]
[]
[null,null,"期　間",null,null,{"$f":"B.日別報告様式!Q23","v":"00:00:00"},null,null,null,null,null,null,"～",null,{"$f":"B.日別報告様式!X23","v":"00:00:00"},null,null,null,null,null,null,null,null,null,"現場責任者確認"]
[]
[null,null,"被共済者数",null,null,null,{"$f":"'C.共済契約者別一覧'!Z37","v":0},null,null,"人",null,"延べ就労日数",null,null,null,null,{"$f":"'C.共済契約者別一覧'!AF37","v":0},null,null,"日"]
[]
[]
[]
[]
[]
[null,"建 設 業 退 職 金 共 済 証 紙 受 領 書"]
[]
[null,null,null,null,null,null,null,null,null,null,null,null,null,null,null,null,null,null,null,null,null,"整理番号",null,null,{"$f":"Y9","v":0}]
[]
[]
[null,"交付元事業所",null,null,null,null,{"$f":"G13","v":"萩原建設工業株式会社"},null,null,null,null,null,null,null,null,null,null,null,null,null,null,"殿"]
[]
[]
[]
[null,null,null,null,null,null,null,null,null,null,null,null,null,{"$f":"Q34","v":0}]
[null,null,null,null,null,null,null,null,null,null,"１日券",null,null,null,null,null,null,null,"枚"]
[]
[]
[]
[null,null,"上記の共済証紙を受領いたしました。"]
[]
[null,null,null,null,null,null,null,null,null,null,null,null,null,null,null,null,null,null,null,null,null,null,"        年       月       日   "]
[]
[null,null,null,null,null,null,null,null,null,null,null,null,null,null,null,null,null,null,null,null,null,null,null,null,null,"受領者確認"]
[]
[null,null,null,null,null,null,null,null,null,null,null,null,null,null,null,{"$f":"A.概要入力!B5","v":0}]
[null,null,null,null,null,null,null,null,null,null,null,"報告事業所"]